[Event "SWVG Arnold Classic Prestige All 2019"]
[Site "Sandton"]
[Date "2019.05.18"]
[Round "3.11"]
[White "Levy, Darren"]
[Black "Goosen, Anton"]
[Result "0-1"]
[ECO "D00"]
[WhiteElo "1836"]
[BlackElo "1965"]
[Annotator "NA RC"]
[PlyCount "124"]
[EventDate "2019.05.18"]
[EventType "swiss"]
[EventCountry "RSA"]
[SourceTitle "playchess.com"]
[Source "ChessBase"]
[SourceQuality "1"]
[TimeControl "1500+10"]

1. g3 {[%emt 0:00:48]} d5 {[%emt 0:00:00]} 2. Bg2 {[%emt 0:00:02]} c6 {[%emt 0:00:00]} 3. d4 {[%emt 0:00:48]} Nf6 {[%emt 0:00:05]} 4. Nc3 {[%emt 0:00:28]} (4. Nf3 Bf5 5. c4 e6 6. Nc3 h6 7. O-O Nbd7 8. Nd2 Be7 9. e4 dxe4 10. Ndxe4 Nxe4 11. Nxe4 O-O 12. Qb3 Qb6 13. Be3 Nf6 14. Nc3 Qxb3 15. axb3 a6 16. d5 cxd5 17. cxd5 e5 18. Na4 Nd7 19. d6 Bxd6 20. Rfd1 {1-0 (36) Artemiev,V (2691)-Ibrahimov,R (2518) Riadh 2017}) 4... g6 {[%emt 0:00:13]} 5. e4 {[%emt 0:00:20]} dxe4 {[%emt 0:00:03]} 6. Nxe4 {[%emt 0:00:04] D00: 1 d4 d5: Unusual lines} Nxe4 {[%emt 0:00:03]} 7. Bxe4 {[%emt 0:00:04]} Bg7 {[%emt 0:00:06]} 8. Be3 {[%emt 0:01:33]} O-O $146 {[%emt 0:00:44]} ({Predecessor:} 8... Nd7 9. c3 Nf6 10. Bg2 O-O 11. Nf3 Be6 12. O-O a5 {0-1 (30) Hajek,Z (1902)-Karlik,V (2251) Olomouc 2015}) 9. Qd2 {[%emt 0:00:31]} Nd7 {[%emt 0:00:24]} 10. O-O-O {[%emt 0:00:25]} Nf6 {[%emt 0:00:04]} 11. Bg2 {[%emt 0:01:25]} Ng4 {[%emt 0:00:20]} 12. Bf4 {[%emt 0:00:33]} e5 {[%emt 0:00:20]} 13. dxe5 {[%emt 0:00:39]} Qxd2+ {[%emt 0:00:16]} 14. Rxd2 {[%emt 0:00:01]} Nxe5 {[%emt 0:00:19]} 15. b3 {[%emt 0:01:26]} Bf5 {[%emt 0:01:21]} 16. Nf3 {[%emt 0:06:29]} Rfe8 {[%emt 0:00:57]} 17. Nd4 {[%emt 0:02:08]} Bd7 {[%emt 0:04:31]} 18. Nf3 {[%emt 0:02:34]} Bg4 {[%emt 0:01:02]} 19. Nxe5 {[%emt 0:00:40]} Bxe5 {[%emt 0:00:04]} 20. Bxe5 {[%emt 0:00:39]} Rxe5 {[%emt 0:00:01]} 21. h3 {[%emt 0:00:11]} Be6 {[%emt 0:00:20]} 22. Rhd1 {[%emt 0:00:31]} Kg7 {[%emt 0:00:29]} 23. Rd8 {[%emt 0:01:31]} Rxd8 {[%emt 0:00:07]} 24. Rxd8 {[%emt 0:00:00]} Re1+ {[%emt 0:00:34]} 25. Rd1 {[%emt 0:00:37]} Re2 {[%emt 0:00:27]} 26. Rd2 {[%emt 0:00:06]} Re1+ {[%emt 0:00:02]} 27. Rd1 {[%emt 0:00:04]} Rxd1+ {[%emt 0:00:01]} 28. Kxd1 {[%emt 0:00:01]} Kf6 {[%emt 0:00:03]} 29. Kd2 {[%emt 0:01:16]} Ke5 {[%emt 0:00:14]} 30. c3 {[%emt 0:00:39]} a5 {[%emt 0:00:03]} 31. f4+ {[%emt 0:00:20]} Kd6 {[%emt 0:00:08]} 32. Ke3 {[%emt 0:00:10]} a4 {[%emt 0:00:04]} 33. bxa4 {[%emt 0:00:58]} Bxa2 {[%emt 0:00:02]} 34. Kd4 {[%emt 0:00:15]} b6 {[%emt 0:00:11]} 35. c4 {[%emt 0:00:59]} Bb3 {[%emt 0:00:05]} 36. Bf3 {[%emt 0:00:35]} Bxa4 {[%emt 0:00:03]} 37. Kc3 $2 {[%emt 0:00:18] [#]} (37. h4 $17) 37... Kc5 $1 {[%emt 0:00:06]} 38. g4 {[%emt 0:00:05]} b5 {[%emt 0:00:21]} 39. cxb5 {[%emt 0:00:20]} cxb5 {[%emt 0:00:09]} 40. h4 {[%emt 0:00:18]} b4+ {[%emt 0:00:01]} 41. Kd2 {[%emt 0:00:21]} Kd4 {[%emt 0:00:03]} 42. f5 {[%emt 0:00:05]} gxf5 {[%emt 0:00:09]} 43. gxf5 {[%emt 0:00:04]} Ke5 {[%emt 0:00:07]} (43... b3 $142 44. Be2 b2) 44. Be2 {[%emt 0:00:11]} h6 {[%emt 0:00:11]} 45. Bd3 {[%emt 0:00:14]} Bd7 {[%emt 0:00:01]} 46. Bc4 {[%emt 0:00:17]} f6 {[%emt 0:00:03]} 47. Kc2 {[%emt 0:00:06]} Bxf5+ {[%emt 0:00:03]} 48. Kb2 {[%emt 0:00:08]} Be6 {[%emt 0:00:07]} 49. Be2 {[%emt 0:00:07]} Kf4 {[%emt 0:00:04]} 50. Kc2 {[%emt 0:00:04]} Bg4 {[%emt 0:00:08]} 51. Bc4 {[%emt 0:00:04]} Kg3 {[%emt 0:00:06]} 52. Kb3 {[%emt 0:00:06]} Kxh4 {[%emt 0:00:03]} 53. Kxb4 {[%emt 0:00:01]} Kg3 {[%emt 0:00:03]} 54. Kc3 {[%emt 0:00:01]} Bf3 {[%emt 0:00:09]} 55. Kd2 {[%emt 0:00:02]} h5 {[%emt 0:00:14]} 56. Ke1 {[%emt 0:00:02]} Bg2 {[%emt 0:00:05]} 57. Be6 {[%emt 0:00:13]} h4 {[%emt 0:00:03]} 58. Ke2 {[%emt 0:00:01]} h3 {[%emt 0:00:03]} 59. Bxh3 {[%emt 0:00:07]} Bxh3 {[%emt 0:00:03]} 60. Ke3 {[%emt 0:00:01]} f5 {[%emt 0:00:03]} 61. Ke2 {[%emt 0:00:01]} f4 {[%emt 0:00:01]} 62. Ke1 {[%emt 0:00:01]} f3 {[%emt 0:00:01]} 0-1

[Event "SWVG Arnold Classic Prestige All 2019"]
[Site "Sandton"]
[Date "2019.05.18"]
[Round "3.12"]
[White "Sithole, Collins"]
[Black "Mpya, Tshediso M"]
[Result "1/2-1/2"]
[ECO "A07"]
[WhiteElo "1861"]
[BlackElo "1958"]
[Annotator "NA RC"]
[PlyCount "92"]
[EventDate "2019.05.18"]
[EventType "swiss"]
[EventCountry "RSA"]
[SourceTitle "playchess.com"]
[Source "ChessBase"]
[SourceQuality "1"]
[TimeControl "1500+10"]

1. Nf3 {[%emt 0:25:10]} d5 {[%emt 0:25:10]} 2. g3 {[%emt 0:00:10]} Bf5 {[%emt 0:00:10]} 3. Bg2 {[%emt 0:00:10]} e6 {[%emt 0:00:10]} 4. d3 {[%emt 0:00:10]} Nf6 {[%emt 0:00:10]} 5. h3 {[%emt 0:00:10]} (5. c4 c6 6. cxd5 exd5 7. O-O Be7 8. Qc2 O-O 9. Nc3 Na6 10. a3 d4 11. Nb1 c5 12. Bg5 h6 13. Bxf6 Bxf6 14. Nbd2 Rc8 15. Rfe1 Qd7 {½-½ (68) Duda,J (2717)-Naiditsch,A (2705) Riadh 2017}) 5... h6 {[%emt 0:00:10]} 6. Nbd2 {[%emt 0:00:10] A07: Réti Opening: New York and Capablanca Systems} Be7 {[%emt 0:00:10]} 7. c4 $146 {[%emt 0:00:10]} ({Predecessor:} 7. b3 O-O 8. Bb2 c5 9. O-O Nc6 10. Ne5 Nxe5 11. Bxe5 Nd7 12. Bb2 Bf6 13. Bxf6 Nxf6 {1-0 (58) Zabystrzan,P (2192)-Horvath,T (1971) Bohumin 2018}) 7... c6 {[%emt 0:00:10]} 8. O-O {[%emt 0:00:10]} O-O {[%emt 0:00:10]} 9. a3 {[%emt 0:00:10]} a5 {[%emt 0:00:10]} 10. Rb1 {[%emt 0:00:10]} b5 {[%emt 0:00:10]} 11. cxb5 {[%emt 0:00:10]} cxb5 {[%emt 0:00:10]} 12. Nd4 {[%emt 0:00:10]} Qd7 {[%emt 0:00:10]} 13. Nxf5 {[%emt 0:00:10]} exf5 {[%emt 0:00:10]} 14. Nf3 {[%emt 0:00:10]} Nc6 {[%emt 0:00:10]} 15. Bf4 {[%emt 0:00:10]} Bd6 {[%emt 0:00:10]} 16. Qd2 {[%emt 0:00:10]} Rfe8 {[%emt 0:00:10]} 17. Rfe1 {[%emt 0:00:10]} Nh5 {[%emt 0:00:10]} 18. Bxd6 {[%emt 0:00:10]} Qxd6 {[%emt 0:00:10]} 19. Kh2 {[%emt 0:00:10]} Re6 {[%emt 0:00:10]} 20. Rbc1 {[%emt 0:00:10]} Rg6 {[%emt 0:00:10]} 21. Rxc6 {[%emt 0:00:10]} Qxc6 {[%emt 0:00:10]} 22. Ne5 {[%emt 0:00:10]} Qd6 {[%emt 0:00:10]} 23. Nxg6 {[%emt 0:00:10]} fxg6 {[%emt 0:00:10]} 24. Bf3 {[%emt 0:00:10]} f4 {[%emt 0:00:10]} 25. g4 {[%emt 0:00:10]} Nf6 {[%emt 0:00:10]} 26. Rc1 {[%emt 0:00:10]} b4 {[%emt 0:00:10]} 27. a4 {[%emt 0:00:10]} Re8 {[%emt 0:00:10]} 28. Qc2 {[%emt 0:00:10]} Kh7 {[%emt 0:00:10]} 29. Qc5 {[%emt 0:00:10]} Qxc5 {[%emt 0:00:10]} 30. Rxc5 {[%emt 0:00:10]} Ra8 {[%emt 0:00:10]} 31. Kg2 {[%emt 0:00:10]} Kg8 {[%emt 0:00:10]} 32. Bxd5+ {[%emt 0:00:10]} Nxd5 {[%emt 0:00:10]} 33. Rxd5 Rc8 {[%emt 0:00:10]} 34. Rxa5 {[%emt 0:00:20]} Rc2 35. Kf3 {[%emt 0:00:10]} g5 {[%emt 0:00:20]} 36. Rb5 {[%emt 0:00:10]} Rxb2 {[%emt 0:00:10]} 37. a5 {[%emt 0:00:10]} Ra2 {[%emt 0:00:10]} 38. Rxb4 {[%emt 0:00:10]} Rxa5 {[%emt 0:00:10]} 39. Rb7 {[%emt 0:00:10]} Ra1 {[%emt 0:00:10]} 40. h4 {[%emt 0:00:10]} gxh4 {[%emt 0:00:10]} 41. Kxf4 {[%emt 0:00:10]} Rg1 {[%emt 0:00:10]} 42. Rb5 {[%emt 0:00:10]} g5+ {[%emt 0:00:10]} 43. Kf5 {[%emt 0:00:10]} h3 {[%emt 0:00:10]} 44. Kf6 {[%emt 0:00:10]} h2 {[%emt 0:00:10]} 45. Rb8+ {[%emt 0:00:10]} Kh7 {[%emt 0:00:10]} 46. Rb7+ {[%emt 0:00:10]} Kg8 {[%emt 0:00:10]} 1/2-1/2

[Event "SWVG Arnold Classic Prestige All 2019"]
[Site "Sandton"]
[Date "2019.05.18"]
[Round "4.1"]
[White "Makoto, Rodwell"]
[Black "Grover, Sahaj"]
[Result "1-0"]
[ECO "A09"]
[WhiteElo "2369"]
[BlackElo "2515"]
[Annotator "ChessBase"]
[PlyCount "74"]
[EventDate "2019.05.18"]
[EventType "swiss"]
[EventCountry "RSA"]
[SourceTitle "playchess.com"]
[Source "ChessBase"]
[SourceQuality "1"]
[TimeControl "1500+10"]

1. Nf3 {[%emt 0:00:00]} d5 {[%emt 0:00:00]} 2. c4 {[%emt 0:00:00]} d4 {[%emt 0:00:12]} 3. b4 {[%emt 0:00:00]} c5 {[%emt 0:00:14]} 4. b5 {[%emt 0:00:00]} Qc7 {[%emt 0:00:13]} 5. g3 {[%emt 0:00:13]} e5 {[%emt 0:00:03]} 6. d3 {[%emt 0:00:04]} f5 {[%emt 0:00:58]} 7. Bg2 {[%emt 0:00:07]} Bd6 {[%emt 0:00:16]} 8. O-O {[%emt 0:00:08]} Nf6 {[%emt 0:00:00]} 9. e3 {[%emt 0:00:10]} O-O {[%emt 0:00:11]} 10. exd4 {[%emt 0:00:02]} cxd4 {[%emt 0:00:02]} 11. Ba3 {[%emt 0:00:16]} Nbd7 {[%emt 0:00:14]} 12. Bxd6 {[%emt 0:00:17]} Qxd6 {[%emt 0:00:02]} 13. Re1 {[%emt 0:00:00]} Re8 {[%emt 0:00:20]} 14. a4 {[%emt 0:00:05]} Nc5 {[%emt 0:00:22]} 15. Na3 {[%emt 0:00:07]} Bd7 {[%emt 0:00:38]} 16. Nc2 {[%emt 0:00:56]} a6 {[%emt 0:00:48]} 17. Nb4 {[%emt 0:02:48]} a5 {[%emt 0:00:36]} 18. Nd5 {[%emt 0:00:34]} Nxd5 {[%emt 0:02:39]} 19. cxd5 {[%emt 0:00:01]} Qf6 {[%emt 0:00:09]} 20. Ra2 {[%emt 0:04:21]} Re7 {[%emt 0:01:15]} 21. Rae2 {[%emt 0:00:25]} Rae8 {[%emt 0:00:02]} 22. Qc2 {[%emt 0:01:02]} b6 {[%emt 0:00:02]} 23. Qc4 {[%emt 0:00:01]} Kf8 {[%emt 0:00:02]} 24. Nd2 {[%emt 0:02:10]} Rc8 {[%emt 0:01:46]} 25. f4 {[%emt 0:00:33]} e4 {[%emt 0:00:07]} 26. dxe4 {[%emt 0:00:49]} fxe4 {[%emt 0:00:03]} 27. Qa2 {[%emt 0:01:36]} e3 {[%emt 0:02:14]} 28. Nc4 {[%emt 0:00:08]} Ree8 {[%emt 0:02:33]} 29. Qa3 {[%emt 0:02:36]} Bg4 {[%emt 0:00:34]} 30. Ne5 {[%emt 0:02:12]} Rxe5 {[%emt 0:00:09]} 31. fxe5 {[%emt 0:00:01]} Qxe5 {[%emt 0:00:01]} 32. Rc2 {[%emt 0:01:09]} Bf5 {[%emt 0:00:49]} 33. Rc4 {[%emt 0:00:16]} d3 {[%emt 0:00:28]} 34. Bf3 {[%emt 0:00:34]} Kg8 {[%emt 0:01:27]} 35. Qc3 {[%emt 0:00:56]} Qxc3 {[%emt 0:00:38]} 36. Rxc3 {[%emt 0:00:01]} Re8 {[%emt 0:00:02]} 37. Bd1 {[%emt 0:00:15]} e2 {[%emt 0:00:20]} 1-0

[Event "SWVG Arnold Classic Prestige All 2019"]
[Site "Sandton"]
[Date "2019.05.18"]
[Round "4.2"]
[White "Mabusela, Johannes Manyedi"]
[Black "Zwakala, Ntando"]
[Result "1/2-1/2"]
[ECO "E48"]
[WhiteElo "2220"]
[BlackElo "2088"]
[Annotator "NA"]
[PlyCount "112"]
[EventDate "2019.05.18"]
[EventType "swiss"]
[EventCountry "RSA"]
[SourceTitle "playchess.com"]
[Source "ChessBase"]
[SourceQuality "1"]
[TimeControl "1500+10"]

1. d4 {[%emt 0:00:05]} Nf6 {[%emt 0:00:00]} 2. c4 {[%emt 0:00:04]} e6 {[%emt 0:00:00]} 3. Nc3 {[%emt 0:00:01]} Bb4 {[%emt 0:00:05]} 4. e3 {[%emt 0:00:33]} O-O {[%emt 0:00:23]} 5. Bd3 {[%emt 0:00:00]} c5 {[%emt 0:00:48]} 6. Nge2 {[%emt 0:00:05]} d5 {[%emt 0:00:17]} 7. cxd5 {[%emt 0:00:08]} exd5 {[%emt 0:02:00]} 8. dxc5 {[%emt 0:00:31]} Bxc5 {[%emt 0:00:13]} 9. O-O {[%emt 0:00:01]} Nc6 {[%emt 0:00:07]} 10. a3 {[%emt 0:00:01]} a6 {[%emt 0:01:23]} 11. b4 {[%emt 0:00:31]} Ba7 {[%emt 0:00:25]} 12. b5 {[%emt 0:00:02]} Ne5 {[%emt 0:00:53]} 13. Bb1 {[%emt 0:00:46]} Re8 {[%emt 0:00:23]} 14. Ra2 {[%emt 0:00:33]} Be6 {[%emt 0:02:30]} 15. Nd4 {[%emt 0:00:26]} Rc8 {[%emt 0:00:26]} 16. Nce2 {[%emt 0:00:30]} Nc4 {[%emt 0:00:39]} 17. bxa6 {[%emt 0:01:00]} bxa6 {[%emt 0:00:03]} 18. Nxe6 {[%emt 0:01:41]} fxe6 {[%emt 0:00:09]} 19. Ng3 {[%emt 0:01:32]} g6 {[%emt 0:02:59]} 20. e4 {[%emt 0:19:50]} d4 {[%emt 0:02:35]} 21. Bd3 {[%emt 0:00:00]} Qa5 {[%emt 0:03:31]} 22. Qe2 {[%emt 0:00:00]} Ne5 {[%emt 0:00:29]} 23. Bxa6 {[%emt 0:00:00]} Rb8 {[%emt 0:01:19]} 24. Bd2 {[%emt 0:00:00]} Qa4 {[%emt 0:00:40]} 25. Bf4 {[%emt 0:00:00]} Nfd7 {[%emt 0:00:11]} 26. Bd3 {[%emt 0:00:00]} Qb3 {[%emt 0:01:19]} 27. Rd2 {[%emt 0:00:00]} Qxa3 {[%emt 0:01:11]} 28. Bb5 {[%emt 0:00:00]} d3 {[%emt 0:01:10]} 29. Bxd3 {[%emt 0:00:00]} Qf8 {[%emt 0:00:11]} 30. Be3 {[%emt 0:00:00]} Bxe3 {[%emt 0:00:03]} 31. Qxe3 {[%emt 0:00:00]} Rbd8 {[%emt 0:00:33]} 32. Be2 {[%emt 0:00:00]} Nf6 {[%emt 0:00:34]} 33. h3 {[%emt 0:00:00]} Rxd2 {[%emt 0:00:35]} 34. Qxd2 {[%emt 0:00:00]} Rd8 {[%emt 0:00:17]} 35. Qf4 {[%emt 0:00:00]} Nfd7 {[%emt 0:00:54]} 36. Qxf8+ {[%emt 0:00:00]} Nxf8 {[%emt 0:00:01]} 37. f4 {[%emt 0:00:00]} Nc6 {[%emt 0:00:06]} 38. Bc4 {[%emt 0:00:00]} Na5 {[%emt 0:00:25]} 39. Ba2 {[%emt 0:00:00]} Rd3 {[%emt 0:00:19]} 40. Kh2 {[%emt 0:00:00]} Kg7 {[%emt 0:00:15]} 41. f5 {[%emt 0:00:00]} exf5 {[%emt 0:00:17]} 42. exf5 {[%emt 0:00:00]} Nd7 {[%emt 0:00:37]} 43. fxg6 {[%emt 0:00:00]} hxg6 {[%emt 0:00:06]} 44. Rf7+ {[%emt 0:00:00]} Kh6 {[%emt 0:00:03]} 45. Ne4 {[%emt 0:00:00]} Rd4 {[%emt 0:00:23]} 46. Nf2 {[%emt 0:00:03]} Ne5 {[%emt 0:00:26]} 47. Ra7 {[%emt 0:00:32]} Nac6 {[%emt 0:00:07]} 48. Ra3 {[%emt 0:00:24]} Rd2 {[%emt 0:00:25]} 49. Ne4 {[%emt 0:01:03]} Re2 {[%emt 0:00:01]} 50. Nf6 {[%emt 0:00:28]} Kg7 {[%emt 0:00:20]} 51. Nd5 {[%emt 0:00:10]} g5 {[%emt 0:00:10]} 52. Ne3 {[%emt 0:00:28]} Kf6 {[%emt 0:00:11]} 53. Bd5 {[%emt 0:00:27]} Ke7 {[%emt 0:00:08]} 54. Kg1 {[%emt 0:00:33]} Nd4 {[%emt 0:00:01]} 55. Be4 {[%emt 0:00:27]} Nb5 {[%emt 0:00:22]} 56. Rb3 {[%emt 0:00:12]} Nd4 {[%emt 0:00:22]} 1/2-1/2

[Event "SWVG Arnold Classic Prestige All 2019"]
[Site "Sandton"]
[Date "2019.05.18"]
[Round "4.3"]
[White "Oatlhotse, Providence"]
[Black "Mnguni, Jacob Dumisani"]
[Result "1-0"]
[ECO "D15"]
[WhiteElo "2289"]
[BlackElo "2141"]
[Annotator "NA"]
[PlyCount "67"]
[EventDate "2019.05.18"]
[EventType "swiss"]
[EventCountry "RSA"]
[SourceTitle "playchess.com"]
[Source "ChessBase"]
[SourceQuality "1"]
[TimeControl "1500+10"]

1. c4 {[%emt 0:00:00]} c6 {[%emt 0:00:00]} 2. Nf3 {[%emt 0:00:00]} d5 {[%emt 0:00:00]} 3. d4 {[%emt 0:00:00]} Nf6 {[%emt 0:00:00]} 4. Nc3 {[%emt 0:00:03]} a6 {[%emt 0:00:00]} 5. h3 {[%emt 0:00:02]} Nbd7 {[%emt 0:01:25]} 6. Bf4 {[%emt 0:00:30]} dxc4 {[%emt 0:02:32]} 7. e4 {[%emt 0:07:05]} e6 {[%emt 0:00:26]} 8. Bxc4 {[%emt 0:00:05]} Be7 {[%emt 0:02:43]} 9. O-O {[%emt 0:00:05]} O-O {[%emt 0:00:12]} 10. Qe2 {[%emt 0:00:01]} b5 {[%emt 0:00:36]} 11. Bd3 {[%emt 0:00:06]} b4 {[%emt 0:00:43]} 12. Na4 {[%emt 0:00:08]} g6 {[%emt 0:03:18]} 13. Rac1 {[%emt 0:00:23]} Qa5 {[%emt 0:00:07]} 14. b3 {[%emt 0:00:08]} c5 {[%emt 0:00:12]} 15. dxc5 {[%emt 0:04:57]} Nxc5 {[%emt 0:00:27]} 16. Nxc5 {[%emt 0:00:11]} Bxc5 {[%emt 0:00:03]} 17. Ne5 {[%emt 0:00:02]} Nd7 {[%emt 0:06:22]} 18. Nc4 {[%emt 0:01:01]} Qd8 {[%emt 0:00:01]} 19. Rfd1 {[%emt 0:00:15]} Qe7 {[%emt 0:00:08]} 20. e5 {[%emt 0:00:25]} Nb6 {[%emt 0:00:28]} 21. Be4 {[%emt 0:01:33]} Nd5 {[%emt 0:02:24]} 22. Bxd5 {[%emt 0:00:02]} exd5 {[%emt 0:00:01]} 23. Rxd5 {[%emt 0:00:01]} Bb7 {[%emt 0:00:01]} 24. Rd2 {[%emt 0:01:02]} Rac8 {[%emt 0:00:34]} 25. Rcd1 {[%emt 0:00:13]} Qh4 {[%emt 0:00:17]} 26. Be3 {[%emt 0:00:46]} Bxe3 {[%emt 0:00:22]} 27. Qxe3 {[%emt 0:00:08]} Rxc4 {[%emt 0:01:18]} 28. bxc4 {[%emt 0:00:02]} Qxc4 {[%emt 0:00:02]} 29. Rd4 {[%emt 0:00:29]} Qxa2 {[%emt 0:00:28]} 30. Rxb4 {[%emt 0:00:10]} Bc8 {[%emt 0:00:03]} 31. Rb8 {[%emt 0:00:25]} Qe6 {[%emt 0:01:15]} 32. Qc5 {[%emt 0:00:18]} Re8 {[%emt 0:00:14]} 33. Rd6 {[%emt 0:00:20]} Qf5 {[%emt 0:00:06]} 34. Rc6 {[%emt 0:01:39]} 1-0

[Event "SWVG Arnold Classic Prestige All 2019"]
[Site "Sandton"]
[Date "2019.05.18"]
[Round "4.4"]
[White "Cawdery, Daniel"]
[Black "Erlank, Warrick"]
[Result "1-0"]
[ECO "C07"]
[WhiteElo "2428"]
[BlackElo "2006"]
[Annotator "NA"]
[PlyCount "65"]
[EventDate "2019.05.18"]
[EventType "swiss"]
[EventCountry "RSA"]
[SourceTitle "playchess.com"]
[Source "ChessBase"]
[SourceQuality "1"]
[TimeControl "1500+10"]

1. e4 {[%emt 0:00:00]} e6 {[%emt 0:00:00]} 2. d4 {[%emt 0:00:06]} d5 {[%emt 0:00:00]} 3. Nd2 {[%emt 0:00:02]} c5 {[%emt 0:00:09]} 4. exd5 {[%emt 0:00:04]} Qxd5 {[%emt 0:00:06]} 5. Ngf3 {[%emt 0:00:02]} cxd4 {[%emt 0:00:07]} 6. Bc4 {[%emt 0:00:01]} Qd6 {[%emt 0:00:07]} 7. O-O {[%emt 0:00:05]} Nf6 {[%emt 0:00:06]} 8. Nb3 {[%emt 0:00:03]} Nc6 {[%emt 0:00:08]} 9. Nbxd4 {[%emt 0:00:08]} Nxd4 {[%emt 0:00:09]} 10. Nxd4 {[%emt 0:00:02]} a6 {[%emt 0:00:31]} 11. c3 {[%emt 0:01:27]} Bd7 {[%emt 0:00:47]} 12. Re1 {[%emt 0:01:39]} Qc7 {[%emt 0:00:40]} 13. Bb3 {[%emt 0:00:23]} O-O-O {[%emt 0:00:48]} 14. Qf3 {[%emt 0:01:20]} e5 {[%emt 0:01:33]} 15. Nc2 {[%emt 0:03:28]} e4 {[%emt 0:01:05]} 16. Qe2 {[%emt 0:00:01]} Ng4 {[%emt 0:02:30]} 17. g3 {[%emt 0:00:02]} Bd6 {[%emt 0:05:01]} 18. Ne3 {[%emt 0:02:15]} Nxe3 {[%emt 0:04:44]} 19. Bxe3 {[%emt 0:00:04]} h5 {[%emt 0:00:38]} 20. Qc4 {[%emt 0:00:48]} Bc6 {[%emt 0:01:17]} 21. Qxf7 {[%emt 0:00:20]} h4 {[%emt 0:01:54]} 22. Qxc7+ {[%emt 0:00:23]} Kxc7 {[%emt 0:00:02]} 23. Rad1 {[%emt 0:02:21]} Rdf8 {[%emt 0:01:07]} 24. Bd5 {[%emt 0:02:24]} Rf3 {[%emt 0:01:24]} 25. Bxc6 {[%emt 0:00:59]} Kxc6 {[%emt 0:00:01]} 26. Rd4 {[%emt 0:01:51]} Re8 {[%emt 0:01:16]} 27. Red1 {[%emt 0:00:38]} Re6 {[%emt 0:01:28]} 28. Kg2 {[%emt 0:01:42]} hxg3 {[%emt 0:00:38]} 29. hxg3 {[%emt 0:00:02]} Rff6 {[%emt 0:00:46]} 30. Rc4+ {[%emt 0:01:05]} Kb5 {[%emt 0:00:30]} 31. b3 {[%emt 0:00:17]} a5 {[%emt 0:00:10]} 32. Rc8 {[%emt 0:01:01]} a4 {[%emt 0:00:23]} 33. Rd5+ {[%emt 0:00:11]} 1-0

[Event "SWVG Arnold Classic Prestige All 2019"]
[Site "Sandton"]
[Date "2019.05.18"]
[Round "4.5"]
[White "Simutowe, Musatwe"]
[Black "Masiya, Mfundo"]
[Result "0-1"]
[ECO "A25"]
[WhiteElo "2170"]
[BlackElo "1856"]
[Annotator "NA"]
[PlyCount "68"]
[EventDate "2019.05.18"]
[EventType "swiss"]
[EventCountry "RSA"]
[SourceTitle "playchess.com"]
[Source "ChessBase"]
[SourceQuality "1"]
[TimeControl "1500+10"]

1. c4 {[%emt 0:00:00]} Nf6 {[%emt 0:00:00]} 2. Nc3 {[%emt 0:00:00]} e5 {[%emt 0:00:00]} 3. g3 {[%emt 0:00:04]} Nc6 {[%emt 0:00:00]} 4. Bg2 {[%emt 0:00:03]} Bc5 {[%emt 0:00:00]} 5. e3 {[%emt 0:00:05]} d5 {[%emt 0:00:01]} 6. cxd5 {[%emt 0:00:17]} Nb4 {[%emt 0:00:05]} 7. d4 {[%emt 0:01:11]} exd4 {[%emt 0:00:02]} 8. exd4 {[%emt 0:00:02]} Be7 {[%emt 0:00:01]} 9. Nge2 {[%emt 0:00:19]} Nbxd5 {[%emt 0:00:07]} 10. O-O {[%emt 0:00:02]} O-O {[%emt 0:00:02]} 11. Qb3 {[%emt 0:00:06]} c6 {[%emt 0:00:13]} 12. h3 {[%emt 0:00:25]} Nb6 {[%emt 0:01:09]} 13. Qc2 {[%emt 0:01:12]} Re8 {[%emt 0:00:44]} 14. Rd1 {[%emt 0:00:39]} Bf8 {[%emt 0:01:13]} 15. Nf4 {[%emt 0:00:26]} Nfd5 {[%emt 0:02:30]} 16. Ncxd5 {[%emt 0:00:27]} cxd5 {[%emt 0:00:26]} 17. Qb3 {[%emt 0:00:23]} Be6 {[%emt 0:00:35]} 18. Bd2 {[%emt 0:00:09]} Nc4 {[%emt 0:02:06]} 19. Bc3 {[%emt 0:02:13]} b6 {[%emt 0:00:29]} 20. Re1 {[%emt 0:00:43]} Rc8 {[%emt 0:00:33]} 21. Qd1 {[%emt 0:00:31]} Bd6 {[%emt 0:01:21]} 22. Nxd5 {[%emt 0:00:57]} Bb8 {[%emt 0:03:34]} 23. Ne3 {[%emt 0:00:45]} Nxe3 {[%emt 0:00:07]} 24. Rxe3 {[%emt 0:00:04]} Qd7 {[%emt 0:00:11]} 25. Kh2 {[%emt 0:00:27]} Bd5 {[%emt 0:00:54]} 26. Qd3 {[%emt 0:04:49]} Rxe3 {[%emt 0:00:33]} 27. Qxe3 {[%emt 0:00:02]} Re8 {[%emt 0:00:11]} 28. Qd3 {[%emt 0:00:02]} h5 {[%emt 0:00:24]} 29. h4 {[%emt 0:00:20]} Bxg2 {[%emt 0:01:54]} 30. Kxg2 {[%emt 0:00:03]} g6 {[%emt 0:00:18]} 31. d5 {[%emt 0:00:06]} Be5 {[%emt 0:00:54]} 32. Re1 {[%emt 0:02:02]} Bxc3 {[%emt 0:01:13]} 33. Rxe8+ {[%emt 0:00:02]} Qxe8 {[%emt 0:00:01]} 34. bxc3 {[%emt 0:00:19]} Qd7 {[%emt 0:00:15]} 0-1

[Event "SWVG Arnold Classic Prestige All 2019"]
[Site "Sandton"]
[Date "2019.05.18"]
[Round "4.6"]
[White "Bhawoodien, Shabir Hussain"]
[Black "Mthunzi, Brighton"]
[Result "1-0"]
[ECO "B43"]
[WhiteElo "2020"]
[BlackElo "2006"]
[Annotator "NA"]
[PlyCount "60"]
[EventDate "2019.05.18"]
[EventType "swiss"]
[EventCountry "RSA"]
[SourceTitle "playchess.com"]
[Source "ChessBase"]
[SourceQuality "1"]
[TimeControl "1500+10"]

1. e4 {[%emt 0:00:00]} c5 {[%emt 0:00:00]} 2. Nc3 {[%emt 0:00:00]} e6 {[%emt 0:00:00]} 3. Nf3 {[%emt 0:00:01]} a6 {[%emt 0:00:00]} 4. d4 {[%emt 0:00:02]} cxd4 {[%emt 0:00:06]} 5. Nxd4 {[%emt 0:00:01]} Qc7 {[%emt 0:00:05]} 6. Be2 {[%emt 0:00:08]} b5 {[%emt 0:00:10]} 7. O-O {[%emt 0:00:05]} Bb7 {[%emt 0:00:05]} 8. a3 {[%emt 0:00:03]} Nf6 {[%emt 0:00:19]} 9. Bf3 {[%emt 0:00:28]} d6 {[%emt 0:00:51]} 10. Re1 {[%emt 0:02:08]} Be7 {[%emt 0:00:20]} 11. g4 {[%emt 0:04:58]} O-O {[%emt 0:00:43]} 12. g5 {[%emt 0:01:11]} Nfd7 {[%emt 0:00:07]} 13. Bg2 {[%emt 0:00:09]} Nc6 {[%emt 0:00:53]} 14. h4 {[%emt 0:00:13]} Nxd4 {[%emt 0:02:35]} 15. Qxd4 {[%emt 0:00:02]} Ne5 {[%emt 0:00:07]} 16. h5 {[%emt 0:02:45]} Rac8 {[%emt 0:01:23]} 17. h6 {[%emt 0:04:33]} gxh6 {[%emt 0:00:03]} 18. gxh6 {[%emt 0:00:07]} Bf6 {[%emt 0:00:01]} 19. Qe3 {[%emt 0:02:42]} Kh8 {[%emt 0:00:20]} 20. Kh1 {[%emt 0:01:24]} Rg8 {[%emt 0:00:08]} 21. Qf4 {[%emt 0:01:06]} Rg6 {[%emt 0:01:36]} 22. f3 {[%emt 0:01:51]} Rcg8 {[%emt 0:02:13]} 23. Rg1 {[%emt 0:00:34]} Bg5 {[%emt 0:00:13]} 24. Qh2 {[%emt 0:00:15]} Rxh6 {[%emt 0:00:40]} 25. Qxh6 {[%emt 0:00:16]} Bxh6 {[%emt 0:00:02]} 26. Bxh6 {[%emt 0:00:01]} Qe7 {[%emt 0:00:33]} 27. Bf4 {[%emt 0:02:16]} Qh4+ {[%emt 0:00:02]} 28. Bh2 {[%emt 0:00:01]} Rg6 {[%emt 0:00:15]} 29. Bh3 {[%emt 0:01:34]} Qxh3 {[%emt 0:00:15]} 30. Rxg6 {[%emt 0:00:05]} hxg6 {[%emt 0:00:07]} 1-0